lending/lending_fUSD_20240401
["ID","MTS","AMOUNT","RATE_DAILY","PERIOD"]
[321218191,1711986651514,-1528.4,0.00058904,120]
[321218192,1711986651523,-1096.06,0.00058904,120]
[321218193,1711986651533,-500.0,0.00058904,120]
[321218194,1711986651542,-500.0,0.00058904,120]
[321218195,1711986651553,-2025.0,0.00058982,117]
[321218196,1711986651563,-157.93074602,0.00058991,120]
[321218197,1711986651573,-12974.0,0.00059,30]
[321218198,1711986651582,-5000.0,0.00059,60]
[321218199,1711986651591,-153.21937786,0.00059013,120]
[321218200,1711986651603,-255.52283609,0.00059084,2]
[321218201,1711986651613,-4074.06878696,0.00059122,2]
[321218202,1711986651623,-541.85,0.00059178,120]
[321218203,1711986651633,-829.0,0.00059178,120]
[321218204,1711986651643,-576.37,0.00059178,120]
[321218205,1711986651653,-580.29,0.00059178,120]
[321218206,1711986651663,-579.08,0.00059178,120]
[321218207,1711986651672,-500.0,0.00059178,120]
[321218208,1711986651682,-500.0,0.00059178,120]
[321218209,1711986651692,-500.0,0.00059178,120]
[321218210,1711986651702,-482.63,0.00059178,120]
[321218211,1711986651712,-758.31,0.00059178,120]
[321218212,1711986651722,-886.07,0.00059178,120]
[321218213,1711986651732,-582.95,0.00059178,120]
[321218214,1711986651741,-500.0,0.00059178,120]
[321218215,1711986651751,-607.24,0.00059178,120]
[321218216,1711986651760,-500.0,0.00059178,120]
[321218217,1711986651770,-621.45,0.00059178,120]
[321218218,1711986651780,-1939.56,0.00059178,120]
[321218219,1711986651790,-500.0,0.00059178,120]
[321218220,1711986651799,-1528.4,0.00059178,120]
[321218221,1711986651808,-1096.06,0.00059178,120]
[321218222,1711986651818,-500.0,0.00059178,120]
[321218223,1711986651827,-500.0,0.00059178,120]
[321218224,1711986651837,-1200.0,0.000592,4]
[321218225,1711986651846,-150.0,0.000593,13]
[321218226,1711986651857,-155.58611026,0.00059341,120]
[321218227,1711986651867,-3017.44680761,0.00059341,2]
[321218228,1711986651876,-463.17,0.00059384,2]
[321218229,1711986651885,-200.0,0.00059437,120]
[321218230,1711986651895,-800.0,0.00059437,120]
[321218231,1711986651904,-500.0,0.00059437,120]
[321218232,1711986651913,-541.85,0.00059452,120]
[321218233,1711986651923,-829.0,0.00059452,120]
[321218234,1711986651933,-576.37,0.00059452,120]
[321218235,1711986651943,-580.29,0.00059452,120]
[321218236,1711986651952,-579.08,0.00059452,120]
[321218237,1711986651962,-500.0,0.00059452,120]
[321218238,1711986651972,-500.0,0.00059452,120]
[321218239,1711986651982,-500.0,0.00059452,120]
[321218240,1711986651991,-758.31,0.00059452,120]
[321218241,1711986652002,-886.07,0.00059452,120]
[321218242,1711986652012,-582.95,0.00059452,120]
[321218243,1711986652021,-500.0,0.00059452,120]
[321218244,1711986652030,-607.24,0.00059452,120]
[321218245,1711986652040,-500.0,0.00059452,120]
[321218246,1711986652051,-621.45,0.00059452,120]
[321218247,1711986652060,-1939.56,0.00059452,120]
[321218248,1711986652069,-500.0,0.00059452,120]
[321218249,1711986652078,-1528.4,0.00059452,120]
[321218250,1711986652088,-1096.06,0.00059452,120]
[321218251,1711986652097,-500.0,0.00059452,120]
[321218252,1711986652107,-500.0,0.00059452,120]
[321218253,1711986652117,-170.86,0.00059491,2]
[321218254,1711986652126,-155.7454303,0.00059556,120]
[321218255,1711986652135,-4144.34955295,0.0005959,18]
[321218256,1711986652145,-1000.0,0.00059648,120]
[321218257,1711986652154,-158.31471238,0.00059692,120]
[321218258,1711986652163,-541.85,0.00059726,120]
[321218259,1711986652173,-829.0,0.00059726,120]
[321218260,1711986652182,-576.37,0.00059726,120]
[321218261,1711986652191,-580.29,0.00059726,120]
[321218262,1711986652202,-579.08,0.00059726,120]
[321218263,1711986652211,-500.0,0.00059726,120]
[321218264,1711986652221,-500.0,0.00059726,120]
[321218265,1711986652231,-500.0,0.00059726,120]
[321218266,1711986652240,-758.31,0.00059726,120]
[321218267,1711986652249,-886.07,0.00059726,120]
[321218268,1711986652257,-582.95,0.00059726,120]
[321218269,1711986652266,-515.48,0.00059726,120]
[321218270,1711986652276,-607.24,0.00059726,120]
[321218271,1711986652285,-500.0,0.00059726,120]
[321218272,1711986652294,-621.45,0.00059726,120]
[321218273,1711986652304,-1939.56,0.00059726,120]
[321218274,1711986652313,-455.14855114,0.00059726,120]
[321218275,1711986652327,-1528.4,0.00059726,120]
[321218276,1711986652336,-1096.06,0.00059726,120]
[321218277,1711986652346,-394.4,0.00059726,120]
[321218278,1711986652357,-500.0,0.00059726,120]
[321218279,1711986652368,-500.0,0.0005975,90]
[321218280,1711986652377,-151.0,0.00059781,120]
[321218281,1711986652386,-150.0,0.000598,14]
[321218282,1711986652395,-158.29023597,0.00059816,81]
[321218283,1711986652405,-317040.15907355,0.000599,30]
[321218284,1711986652416,-151.32185464,0.000599,120]
[321218285,1711986652425,-151.32185454,0.000599,120]
[321218286,1711986652434,-151.32185454,0.000599,120]
[321218287,1711986652443,-151.32185454,0.000599,120]
[321218288,1711986652452,-151.32185454,0.000599,120]
[321218289,1711986652461,-151.32185454,0.000599,120]
[321218290,1711986652470,-151.32185454,0.000599,120]
[321218291,1711986652479,-151.32185454,0.000599,120]
[321218292,1711986652488,-151.32185454,0.000599,120]
[321218293,1711986652498,-151.32185454,0.000599,120]
[321218294,1711986652507,-151.32185454,0.000599,120]
[321218295,1711986652516,-151.32185454,0.000599,120]
[321218296,1711986652525,-151.32185454,0.000599,120]
[321218297,1711986652534,-500.0,0.00059999,120]
[321218298,1711986652543,-541.85,0.00059999,120]
[321218299,1711986652552,-829.0,0.00059999,120]
[321218300,1711986652562,-576.37,0.00059999,120]
[321218301,1711986652571,-580.29,0.00059999,120]
[321218302,1711986652580,-579.08,0.00059999,120]
[321218303,1711986652590,-500.0,0.00059999,120]
[321218304,1711986652599,-293.46920287,0.00059999,120]
[321218305,1711986652610,-500.0,0.00059999,120]
[321218306,1711986652619,-758.31,0.00059999,120]
[321218307,1711986652628,-886.07,0.00059999,120]
[321218308,1711986652637,-582.95,0.00059999,120]
[321218309,1711986652646,-607.24,0.00059999,120]
[321218310,1711986652656,-473.0295299,0.00059999,120]
[321218311,1711986652665,-621.45,0.00059999,120]
[321218312,1711986652674,-1939.56,0.00059999,120]
[321218313,1711986652684,-1528.4,0.00059999,120]
[321218314,1711986652693,-1096.06,0.00059999,120]
[321218315,1711986652703,-349.36,0.00059999,120]
[321218316,1711986652713,-100000.0,0.0006,60]
[321218317,1711986652722,-155.0,0.0006,60]
[321218318,1711986652732,-158.82,0.0006,30]
[321218319,1711986652741,-1000.12345678,0.0006,120]
[321218320,1711986652750,-8905.49848806,0.0006,120]
[321218321,1711986652759,-518.06512933,0.0006,90]
[321218322,1711986652768,-3199.90089924,0.0006,90]
[321218323,1711986652778,-1652.648893,0.0006,120]
[321218324,1711986652787,-1495.19701797,0.0006,7]
[321218325,1711986652796,-442.0,0.000602,86]
[321218326,1711986652805,-541.85,0.00060273,120]
[321218327,1711986652815,-829.0,0.00060273,120]
[321218328,1711986652824,-576.37,0.00060273,120]
[321218329,1711986652834,-580.29,0.00060273,120]
[321218330,1711986652843,-579.08,0.00060273,120]
[321218331,1711986652852,-290.44,0.00060273,120]
[321218332,1711986652862,-500.0,0.00060273,120]
[321218333,1711986652871,-758.31,0.00060273,120]
[321218334,1711986652880,-886.07,0.00060273,120]
[321218335,1711986652889,-582.95,0.00060273,120]
[321218336,1711986652898,-607.24,0.00060273,120]
[321218337,1711986652908,-621.45,0.00060273,120]
[321218338,1711986652916,-1939.56,0.00060273,120]
[321218339,1711986652925,-1528.4,0.00060273,120]
[321218340,1711986652934,-1096.06,0.00060273,120]
[321218341,1711986652944,-37164.23,0.00060274,30]
[321218342,1711986652953,-500.0,0.00060298,90]
[321218343,1711986652963,-158.31471238,0.00060443,120]
[321218344,1711986652972,-541.85,0.00060547,120]
[321218345,1711986652991,-829.0,0.00060547,120]
[321218346,1711986653001,-576.37,0.00060547,120]
[321218347,1711986653011,-580.29,0.00060547,120]
[321218348,1711986653020,-579.08,0.00060547,120]
[321218349,1711986653029,-500.0,0.00060547,120]
[321218350,1711986653038,-758.31,0.00060547,120]
[321218351,1711986653047,-886.07,0.00060547,120]
[321218352,1711986653056,-582.95,0.00060547,120]
[321218353,1711986653065,-607.24,0.00060547,120]
[321218354,1711986653074,-621.45,0.00060547,120]
[321218355,1711986653083,-1939.56,0.00060547,120]
[321218356,1711986653093,-1528.4,0.00060547,120]
[321218357,1711986653102,-1096.06,0.00060547,120]
[321218358,1711986653113,-157.33619366,0.00060597,14]
[321218359,1711986653123,-151.32185454,0.00060606,120]
[321218360,1711986653132,-2100.0,0.00060691,120]
[321218361,1711986653142,-154.51561327,0.00060748,120]
[321218362,1711986653150,-541.85,0.00060821,120]
[321218363,1711986653159,-829.0,0.00060821,120]
[321218364,1711986653169,-576.37,0.00060821,120]
[321218365,1711986653178,-580.29,0.00060821,120]
[321218366,1711986653187,-579.08,0.00060821,120]
[321218367,1711986653197,-500.0,0.00060821,120]
[321218368,1711986653206,-758.31,0.00060821,120]
[321218369,1711986653215,-886.07,0.00060821,120]
[321218370,1711986653224,-582.95,0.00060821,120]
[321218371,1711986653234,-607.24,0.00060821,120]
[321218372,1711986653243,-621.45,0.00060821,120]
[321218373,1711986653252,-1939.56,0.00060821,120]
[321218374,1711986653261,-1528.4,0.00060821,120]
[321218375,1711986653270,-1096.06,0.00060821,120]
[321218376,1711986653279,-151.0,0.00060932,120]
[321218377,1711986653288,-151.0,0.00060959,120]
[321218378,1711986653297,-4074.06878696,0.00060967,2]
[321218379,1711986653307,-100000.0,0.00061,61]
[321218380,1711986653317,-2000.0,0.00061,120]
[321218381,1711986653327,-150.0,0.00061,115]
[321218382,1711986653340,-541.85,0.00061095,120]
[321218383,1711986653350,-829.0,0.00061095,120]
[321218384,1711986653361,-576.49,0.00061095,120]
[321218385,1711986653370,-580.29,0.00061095,120]
[321218386,1711986653379,-579.2,0.00061095,120]
[321218387,1711986653391,-493.70997615,0.00061095,120]
[321218388,1711986653402,-758.48,0.00061095,120]
[321218389,1711986653412,-886.26,0.00061095,120]
[321218390,1711986653423,-583.01,0.00061095,120]
[321218391,1711986653433,-607.39,0.00061095,120]
[321218392,1711986653444,-621.68,0.00061095,120]
[321218393,1711986653455,-1939.68,0.00061095,120]
[321218394,1711986653465,-1528.51,0.00061095,120]
[321218395,1711986653474,-1096.24178015,0.00061095,120]
[321218396,1711986653483,-168.0,0.0006111,87]
[321218397,1711986653493,-150.0,0.00061127,120]
[321218398,1711986653504,-1178.0,0.00061127,120]
[321218399,1711986653517,-150.0,0.00061127,2]
[321218400,1711986653527,-153.32,0.00061208,120]
[321218401,1711986653536,-197.27,0.00061239,120]
[321218402,1711986653547,-170.8,0.000613,10]
[321218403,1711986653558,-170.8,0.000613,10]
[321218404,1711986653567,-170.8,0.000613,10]
[321218405,1711986653576,-170.8,0.000613,10]
[321218406,1711986653586,-170.8,0.000613,10]
[321218407,1711986653596,-170.8,0.000613,10]
[321218408,1711986653606,-170.8,0.000613,10]
[321218409,1711986653615,-170.8,0.000613,10]
[321218410,1711986653624,-170.8,0.000613,10]
[321218411,1711986653634,-170.8,0.000613,10]
[321218412,1711986653643,-170.8,0.000613,10]
[321218413,1711986653652,-170.8,0.000613,10]
[321218414,1711986653661,-170.8,0.000613,10]
[321218415,1711986653671,-170.8,0.000613,10]
[321218416,1711986653680,-170.8,0.000613,10]
[321218417,1711986653691,-170.8,0.000613,10]
[321218418,1711986653701,-170.8,0.000613,10]
[321218419,1711986653710,-170.8,0.000613,10]
[321218420,1711986653719,-170.8,0.000613,10]
[321218421,1711986653729,-170.8,0.000613,10]
[321218422,1711986653738,-606.0,0.00061344,25]
[321218423,1711986653748,-151.32185454,0.00061429,120]
[321218424,1711986653757,-150.0,0.000615,116]
[321218425,1711986653767,-255.52283609,0.00061556,2]
[321218426,1711986653777,-153.28546367,0.00061583,120]
[321218427,1711986653787,-463.17,0.00061648,2]
[321218428,1711986653797,-152.93655063,0.0006169,120]
[321218429,1711986653808,-154.51561327,0.00061705,120]
[321218430,1711986653818,-155.97839752,0.00061785,120]
[321218431,1711986653827,-100000.0,0.00062,62]
[321218432,1711986653836,-1188.71887124,0.00062,120]
[321218433,1711986653846,-150.0,0.00062,117]
[321218434,1711986653859,-158.29023596,0.00062044,90]
[321218435,1711986653868,-151.0,0.00062137,120]
[321218436,1711986653877,-788.51267319,0.0006215,120]
[321218437,1711986653887,-151.32185454,0.00062253,120]
[321218438,1711986653896,-150.0,0.000625,118]
[321218439,1711986653905,-210.0,0.0006267,30]
[321218440,1711986653914,-152.0,0.00062682,4]
[321218441,1711986653923,-4074.06878696,0.00062811,2]
[321218442,1711986653933,-156.21335944,0.00062877,120]
[321218443,1711986653942,-157.86976826,0.00062887,120]
[321218444,1711986653951,-200000.0,0.00063,63]
[321218445,1711986653961,-2000.0,0.00063,120]
[321218446,1711986653973,-20000.0,0.00063,120]
[321218447,1711986653983,-150.0,0.00063,119]
[321218448,1711986653993,-151.32185454,0.00063076,120]
[321218449,1711986654003,-160.60706037,0.00063093,120]
[321218450,1711986654014,-166.66666667,0.0006311,120]
[321218451,1711986654026,-1028.0,0.0006327,120]
[321218452,1711986654036,-151.0,0.00063315,120]
[321218453,1711986654046,-153.21937786,0.00063333,120]
[321218454,1711986654056,-6921.06239497,0.0006335,2]
[321218455,1711986654066,-152.93655063,0.00063359,120]
[321218456,1711986654075,-7959.06946802,0.000634,50]
[321218457,1711986654085,-1563534.73447397,0.00063498,36]
[321218458,1711986654094,-20000.0,0.000635,120]
[321218459,1711986654105,-150.0,0.000635,120]
[321218460,1711986654114,-499.99999901,0.000635,120]
[321218461,1711986654122,-157.33619366,0.00063549,14]
[321218462,1711986654132,-158.31471238,0.00063632,120]
[321218463,1711986654142,-500.0,0.000637,120]
[321218464,1711986654150,-170.8,0.000638,11]
[321218465,1711986654159,-170.8,0.000638,11]
[321218466,1711986654168,-170.8,0.000638,11]
[321218467,1711986654178,-170.8,0.000638,11]
[321218468,1711986654186,-170.8,0.000638,11]
[321218469,1711986654196,-170.8,0.000638,11]
[321218470,1711986654205,-170.8,0.000638,11]
[321218471,1711986654214,-170.8,0.000638,11]
[321218472,1711986654223,-170.8,0.000638,11]
[321218473,1711986654233,-170.8,0.000638,11]
[321218474,1711986654243,-170.8,0.000638,11]
[321218475,1711986654253,-170.8,0.000638,11]
[321218476,1711986654263,-170.8,0.000638,11]
[321218477,1711986654273,-170.8,0.000638,11]
[321218478,1711986654283,-170.8,0.000638,11]
[321218479,1711986654293,-170.8,0.000638,11]
[321218480,1711986654304,-170.8,0.000638,11]
[321218481,1711986654314,-170.8,0.000638,11]
[321218482,1711986654325,-170.8,0.000638,11]
[321218483,1711986654338,-170.8,0.000638,11]
[321218484,1711986654350,-45544.60898959,0.00063898,120]
[321218485,1711986654360,-231.16091206,0.000639,2]
[321218486,1711986654370,-218.15750495,0.000639,67]
[321218487,1711986654380,-151.3026793,0.000639,120]
[321218488,1711986654389,-3591.89975042,0.000639,2]
[321218489,1711986654400,-500.0,0.000639,120]
[321218490,1711986654411,-151.32185454,0.000639,120]
[321218491,1711986654421,-463.17,0.00063912,2]
[321218492,1711986654431,-159.0982721,0.0006395,120]
[321218493,1711986654441,-236.0,0.0006397,15]
[321218494,1711986654451,-150.5,0.0006397,15]
[321218495,1711986654460,-197.27,0.00063979,120]
[321218496,1711986654470,-150.5,0.0006398,15]
[321218497,1711986654480,-150.5,0.0006398,15]
[321218498,1711986654490,-184.063623,0.00063989,7]
[321218499,1711986654500,-150.5,0.0006399,15]
[321218500,1711986654511,-150.5,0.0006399,15]
[321218501,1711986654521,-500.0,0.00063999,103]
[321218502,1711986654532,-500.0,0.00063999,103]
[321218503,1711986654647,-504.75683184,0.00063999,103]
[321218504,1711986654669,-434.90431009,0.00063999,60]
[321218505,1711986654678,-1076.3147327,0.00063999,60]
[321218506,1711986654687,-296.05700934,0.00063999,60]
[321218507,1711986654696,-514.18826486,0.00063999,60]
[321218508,1711986654705,-200000.0,0.00064,64]
[321218509,1711986654714,-21530.60335252,0.00064,12]
[321218510,1711986654724,-20000.0,0.00064,120]
[321218511,1711986654733,-150.0,0.00064,120]
[321218512,1711986654742,-156.585118,0.00064,65]
[321218513,1711986654752,-4863.39,0.00064,117]
[321218514,1711986654761,-255.52283609,0.00064028,2]
[321218515,1711986654770,-150.0,0.00064127,120]
[321218516,1711986654779,-158.29023596,0.00064272,98]
[321218517,1711986654788,-154.51561327,0.00064286,120]
[321218518,1711986654798,-155.28587931,0.00064305,120]
[321218519,1711986654807,-156.97874248,0.00064352,120]
[321218520,1711986654817,-151.0,0.00064493,120]
[321218521,1711986654825,-151.040115,0.00064498,120]
[321218522,1711986654834,-150.0,0.000645,120]
[321218523,1711986654844,-218.15750491,0.0006455,68]
[321218524,1711986654853,-153.21937786,0.0006456,120]
[321218525,1711986654865,-151.0,0.00064575,120]
[321218526,1711986654874,-4074.06878696,0.00064656,2]
[321218527,1711986654884,-154.51561327,0.00064711,120]
[321218528,1711986654894,-159.0982721,0.00064739,120]
[321218529,1711986654903,-155.26455129,0.00064785,120]
[321218530,1711986654912,-159.0982721,0.00064935,120]
[321218531,1711986654921,-156.97874248,0.00064971,120]
[321218532,1711986654930,-155.7454303,0.00064991,120]
[321218533,1711986654939,-200000.0,0.00065,65]
[321218534,1711986654948,-2000.0,0.00065,120]
[321218535,1711986654957,-20000.0,0.00065,120]
[321218536,1711986654966,-1424.73112632,0.00065,7]
[321218537,1711986654975,-150.0,0.00065,120]
[321218538,1711986654984,-150.0,0.00065091,120]
[321218539,1711986654993,-155.58611026,0.00065163,120]
[321218540,1711986655002,-231.16091206,0.000652,2]
[321218541,1711986655011,-218.15750491,0.000652,69]
[321218542,1711986655021,-151.30267928,0.000652,120]
[321218543,1711986655030,-3591.89975042,0.000652,2]
[321218544,1711986655039,-5384.31548186,0.00065268,120]
[321218545,1711986655048,-155.28587931,0.00065305,120]
[321218546,1711986655057,-151.040115,0.00065498,120]
[321218547,1711986655066,-500.0,0.00065499,120]
[321218548,1711986655075,-592.45,0.00065499,120]
[321218549,1711986655084,-13219.7,0.000655,120]
[321218550,1711986655093,-150.0,0.000655,120]
[321218551,1711986655102,-1000.0,0.00065613,120]
[321218552,1711986655113,-151.0,0.00065671,120]
[321218553,1711986655121,-300.0,0.000657,120]
[321218554,1711986655131,-1009.06,0.000657,120]
[321218555,1711986655142,-319.82,0.000657,120]
[321218556,1711986655154,-158.31471238,0.00065747,120]
[321218557,1711986655164,-1000.0,0.00065753,120]
[321218558,1711986655175,-153.21937786,0.00065802,120]
[321218559,1711986655185,-218.15750491,0.0006585,70]
[321218560,1711986655195,-183.0931,0.0006586,120]
[321218561,1711986655206,-223.80814434,0.000659,2]
[321218562,1711986655215,-194.3276505,0.00065906,120]
[321218563,1711986655226,-153.32,0.0006597,120]
[321218564,1711986655236,-1205317.40670664,0.0006598,2]
[321218565,1711986655244,-200000.0,0.00066,66]
[321218566,1711986655254,-3548.68139429,0.00066,120]
[321218567,1711986655264,-150.0,0.00066,120]
[321218568,1711986655273,-224.5319,0.00066,120]
[321218569,1711986655283,-1006.48,0.00066,120]
[321218570,1711986655295,-5671.04911708,0.00066044,35]
[321218571,1711986655303,-160.65775083,0.00066166,120]
[321218572,1711986655314,-158.31471238,0.00066169,120]
[321218573,1711986655328,-463.17,0.00066176,2]
[321218574,1711986655338,-5466.46219195,0.000662,60]
[321218575,1711986655348,-303.63488174,0.00066256,60]
[321218576,1711986655358,-1524.6105,0.00066267,14]
[321218577,1711986655367,-663.65,0.00066295,30]
[321218578,1711986655376,-154.48,0.000663,12]
[321218579,1711986655386,-154.48,0.000663,12]
[321218580,1711986655397,-154.48,0.000663,12]
[321218581,1711986655408,-154.48,0.000663,12]
[321218582,1711986655418,-154.48,0.000663,12]
[321218583,1711986655428,-170.8,0.000663,12]
[321218584,1711986655438,-170.8,0.000663,12]
[321218585,1711986655447,-170.8,0.000663,12]
[321218586,1711986655457,-170.8,0.000663,12]
[321218587,1711986655466,-170.8,0.000663,12]
[321218588,1711986655476,-170.8,0.000663,12]
[321218589,1711986655485,-170.8,0.000663,12]
[321218590,1711986655495,-170.8,0.000663,12]
[321218591,1711986655506,-170.8,0.000663,12]
[321218592,1711986655516,-170.8,0.000663,12]
[321218593,1711986655525,-170.8,0.000663,12]
[321218594,1711986655534,-170.8,0.000663,12]
[321218595,1711986655544,-170.8,0.000663,12]
[321218596,1711986655553,-170.8,0.000663,12]
[321218597,1711986655562,-170.8,0.000663,12]
[321218598,1711986655571,-170.8,0.000663,12]
[321218599,1711986655581,-170.8,0.000663,12]
[321218600,1711986655590,-170.8,0.000663,12]
[321218601,1711986655599,-170.8,0.000663,12]
[321218602,1711986655610,-170.8,0.000663,12]
[321218603,1711986655618,-2642.28146404,0.00066385,120]
[321218604,1711986655729,-2256.81047916,0.00066385,120]
[321218605,1711986655741,-100.9080568,0.00066385,120]
[321218606,1711986655750,-23219.953927,0.000664,2]
[321218607,1711986655759,-12294.43995772,0.000665,47]
[321218608,1711986655769,-25504.999999,0.000665,120]
[321218609,1711986655778,-464.0,0.000665,40]
[321218610,1711986655788,-158.29023596,0.000665,107]
[321218611,1711986655797,-185.45993244,0.000665,120]
[321218612,1711986655807,-255.52283609,0.000665,2]
[321218613,1711986655816,-638.09802744,0.000665,2]
[321218614,1711986655826,-223.80814434,0.000665,2]
[321218615,1711986655836,-4074.06878696,0.000665,2]
[321218616,1711986655846,-155.67735983,0.000665,120]
[321218617,1711986655857,-155.67735983,0.000665,120]
[321218618,1711986655866,-155.67735983,0.000665,120]
[321218619,1711986655876,-155.67735983,0.000665,120]
[321218620,1711986655886,-156.17,0.000665,120]
[321218621,1711986655895,-155.75235983,0.000665,120]
[321218622,1711986655905,-155.75235983,0.000665,120]
[321218623,1711986655914,-155.75235983,0.000665,120]
[321218624,1711986655924,-155.75235983,0.000665,120]
[321218625,1711986655933,-155.75235983,0.000665,120]
[321218626,1711986655943,-155.75235983,0.000665,120]
[321218627,1711986655953,-145.59708041,0.000665,120]
[321218628,1711986655992,-500.0,0.00057808,120]
[321218629,1711986656002,-10.15527942,0.000665,120]
[321218630,1711986656011,-231.16091206,0.000665,2]
[321218631,1711986656020,-11.1489237,0.000665,120]
[321218632,1711986656037,-144.60343613,0.000665,120]
[321218633,1711986656046,-155.75235983,0.000665,120]
[321218634,1711986656056,-155.75235983,0.000665,120]
[321218635,1711986656065,-155.75235983,0.000665,120]
[321218636,1711986656074,-155.75235983,0.000665,120]
[321218637,1711986656083,-155.75235983,0.000665,120]
[321218638,1711986656093,-155.75235983,0.000665,120]
[321218639,1711986656102,-155.75235983,0.000665,120]
[321218640,1711986656114,-155.75235983,0.000665,120]
[321218641,1711986656123,-155.75235983,0.000665,120]
[321218642,1711986656133,-155.75235983,0.000665,120]
[321218643,1711986656142,-155.75235983,0.000665,120]
[321218644,1711986656152,-156.25,0.000665,120]
[321218645,1711986656161,-156.01883879,0.000665,120]
[321218646,1711986656173,-139.80116121,0.000665,120]
[321218647,1711986656182,-168.96937688,0.000665,120]
[321218648,1711986656191,-168.96937688,0.000665,120]
[321218649,1711986656200,-168.96937688,0.000665,120]
[321218650,1711986656209,-168.96937688,0.000665,120]
[321218651,1711986656218,-168.96937688,0.000665,120]
[321218652,1711986656227,-168.96937688,0.000665,120]
[321218653,1711986656236,-112.59775352,0.000665,120]
[321218654,1711986656249,-56.86224648,0.000665,120]
[321218655,1711986656258,-219.88490202,0.000665,120]
[321218656,1711986656267,-220.38,0.000665,120]
[321218657,1711986656276,-160.05265602,0.000665,120]
[321218658,1711986656286,-160.05265602,0.000665,120]
[321218659,1711986656296,-160.05265602,0.000665,120]
[321218660,1711986656305,-160.05265602,0.000665,120]
[321218661,1711986656316,-160.05265602,0.000665,120]
[321218662,1711986656326,-160.05265602,0.000665,120]
[321218663,1711986656338,-160.05265602,0.000665,120]
[321218664,1711986656348,-160.05265602,0.000665,120]
[321218665,1711986656358,-160.05265602,0.000665,120]
[321218666,1711986656369,-160.05265602,0.000665,120]
[321218667,1711986656379,-160.55,0.000665,120]
[321218668,1711986656389,-154.4134673,0.000665,120]
[321218669,1711986656397,-154.91,0.000665,120]
[321218670,1711986656406,-154.6009673,0.000665,120]
[321218671,1711986656415,-154.6009673,0.000665,120]
[321218672,1711986656424,-154.6009673,0.000665,120]
[321218673,1711986656433,-154.6009673,0.000665,120]
[321218674,1711986656443,-154.6009673,0.000665,120]
[321218675,1711986656453,-154.6009673,0.000665,120]
[321218676,1711986656462,-154.6009673,0.000665,120]
[321218677,1711986656472,-155.1,0.000665,120]
[321218678,1711986656481,-157.33619366,0.000665,14]
[321218679,1711986656491,-4533.93633358,0.000665,120]
[321218680,1711986656502,-218.15750491,0.000665,71]
[321218681,1711986656511,-151.30267928,0.000665,120]
[321218682,1711986656521,-3591.89975042,0.000665,2]
[321218683,1711986656530,-157.93074602,0.00066525,120]
[321218684,1711986656539,-807.76796402,0.00066538,7]
[321218685,1711986656548,-4205.0905364,0.00066554,4]
[321218686,1711986656557,-4137.7828214,0.00066554,4]
[321218687,1711986656566,-4070.4751063,0.00066554,4]
[321218688,1711986656576,-4003.1673913,0.00066554,4]
[321218689,1711986656585,-3935.8596763,0.00066554,4]
[321218690,1711986656594,-1919.2395913,0.00066554,4]